bitfinex/quotes_BTCUSD_20220304
["timestamp","ask_amount","ask_price","bid_price","bid_amount"]
[1646360661740,0.204629,41427.0,41420.0,0.1144]
[1646360661940,0.204629,41427.0,41418.0,0.0011]
[1646360662148,0.09757887,41426.0,41418.0,0.0011]
[1646360662344,0.19757887,41426.0,41418.0,0.0011]
[1646360662542,0.1432,41426.0,41418.0,0.0011]
[1646360663344,0.152872,41426.0,41418.0,0.0011]
[1646360663544,0.1432,41426.0,41418.0,0.0011]
[1646360664346,0.59612695,41426.0,41418.0,0.0011]
[1646360664745,0.1472,41426.0,41418.0,0.0011]
[1646360664985,0.0472,41426.0,41418.0,0.0011]
[1646360665188,0.26387628,41425.0,41418.0,0.0011]
[1646360665387,0.0482,41424.0,41418.0,0.0011]
[1646360665793,0.1482,41424.0,41418.0,0.0011]
[1646360666188,0.1522,41424.0,41418.0,0.0011]
[1646360667091,0.22282647,41424.0,41418.0,0.0011]
[1646360667490,0.36211133,41424.0,41418.0,0.0011]
[1646360667692,0.01147158,41420.0,41418.0,0.0011]
[1646360667891,0.1482,41424.0,41418.0,0.0011]
[1646360668090,0.29148486,41424.0,41418.0,0.0011]
[1646360668295,0.1532,41424.0,41418.0,0.0011]
[1646360669542,0.1482,41424.0,41418.0,0.0011]
[1646360669942,0.0482,41424.0,41418.0,0.0011]
[1646360670142,0.11400715,41424.0,41418.0,0.0011]
[1646360670544,0.12367915,41424.0,41418.0,0.0011]
[1646360670742,0.057872,41424.0,41418.0,0.0011]
[1646360670946,0.0482,41424.0,41418.0,0.0011]
[1646360671543,0.18596659,41420.0,41418.0,0.0011]
[1646360671745,0.23416659,41420.0,41418.0,0.0011]
[1646360671944,0.0482,41420.0,41418.0,0.0011]
[1646360672244,0.0532,41420.0,41418.0,0.0011]
[1646360673493,0.0482,41420.0,41418.0,0.0011]
[1646360676344,0.0532,41420.0,41418.0,0.0011]
[1646360678041,0.0482,41420.0,41418.0,0.0011]
[1646360678239,0.0522,41420.0,41418.0,0.0011]
[1646360679439,0.0482,41420.0,41418.0,0.0011]
[1646360680295,0.59712695,41420.0,41418.0,0.0011]
[1646360680498,0.49712695,41420.0,41418.0,0.0011]
[1646360680696,0.59712695,41420.0,41418.0,0.0011]
[1646360681095,0.60859853,41420.0,41419.0,0.00011783]
[1646360681895,0.59859853,41420.0,41419.0,0.00011783]
[1646360682295,0.61227153,41420.0,41419.0,0.00011783]
[1646360682497,0.75555639,41420.0,41419.0,0.00011783]
[1646360682697,0.74588339,41420.0,41419.0,0.00011783]
[1646360683298,0.69519947,41420.0,41419.0,0.00011783]
[1646360683497,1.19119947,41420.0,41419.0,0.00011783]
[1646360685763,1.6409504,41420.0,41419.0,0.00011783]
[1646360686365,1.6536234,41420.0,41419.0,0.00011783]
[1646360686568,1.6439504,41420.0,41419.0,0.00011783]
[1646360686965,1.19419947,41420.0,41419.0,0.00011783]
[1646360687992,0.79595644,41420.0,41419.0,0.00011783]
[1646360688194,0.79295644,41420.0,41419.0,0.00011783]
[1646360688491,0.64967158,41420.0,41419.0,0.00011783]
[1646360688691,0.79295644,41420.0,41419.0,0.00011783]
[1646360688892,0.64967158,41420.0,41419.0,0.00011783]
[1646360689095,0.64967158,41420.0,41418.0,4.856e-05]
[1646360689096,0.6,41419.0,41418.0,4.856e-05]
[1646360689309,0.75967158,41419.0,41418.0,4.856e-05]
[1646360689492,0.90295644,41419.0,41418.0,4.856e-05]
[1646360689693,0.30295644,41419.0,41418.0,4.856e-05]
[1646360690192,0.1482,41419.0,41418.0,4.856e-05]
[1646360690594,0.1432,41419.0,41418.0,4.856e-05]
[1646360690795,0.78648486,41419.0,41418.0,4.856e-05]
[1646360690995,0.78648486,41419.0,41416.0,0.00124856]
[1646360690996,0.85,41418.0,41416.0,0.00124856]
[1646360691252,0.0482,41417.0,41416.0,0.00124856]
[1646360691847,0.05967158,41417.0,41416.0,0.00124856]
[1646360692050,0.0482,41417.0,41416.0,0.00124856]
[1646360693650,0.22887829,41417.0,41416.0,0.00124856]
[1646360694257,0.23187829,41417.0,41416.0,0.00124856]
[1646360695093,0.24334987,41417.0,41416.0,0.00124856]
[1646360695294,0.34334987,41417.0,41416.0,0.00124856]
[1646360695493,0.7415929,41417.0,41416.0,0.00124856]
[1646360695693,0.7385929,41417.0,41416.0,0.00124856]
[1646360695895,0.72712132,41417.0,41416.0,0.00124856]
[1646360696295,0.73112132,41417.0,41416.0,0.00124856]
[1646360696698,0.55044303,41417.0,41416.0,0.00124856]
[1646360696900,0.1522,41417.0,41416.0,0.00124856]
[1646360697097,0.06367158,41417.0,41416.0,0.00124856]
[1646360697497,0.07334558,41417.0,41416.0,0.00124856]
[1646360697698,0.05967158,41417.0,41416.0,0.00124856]
[1646360697898,0.21456374,41417.0,41416.0,0.00124856]
[1646360698298,0.31456374,41417.0,41416.0,0.00124856]
[1646360698497,0.15967158,41417.0,41416.0,0.00124856]
[1646360699342,0.15300493,41417.0,41416.0,0.00124856]
[1646360699941,0.33761829,41417.0,41416.0,0.00124856]
[1646360700240,0.15700493,41417.0,41416.0,0.00124856]
[1646360701242,0.30996379,41417.0,41416.0,0.00124856]
[1646360701644,0.16267893,41417.0,41416.0,0.00124856]
[1646360702246,0.16667893,41417.0,41416.0,0.00124856]
[1646360702691,0.15700493,41417.0,41416.0,0.00124856]
[1646360702994,0.05700493,41417.0,41416.0,0.00124856]
[1646360703391,0.5,41416.0,41411.0,0.00168079]
[1646360703590,0.04153335,41417.0,41411.0,0.00168079]
[1646360703791,0.18481821,41417.0,41411.0,0.00168079]
[1646360704090,0.04153335,41417.0,41411.0,0.00168079]
[1646360704290,0.14553335,41417.0,41411.0,0.00168079]
[1646360705294,0.04553335,41417.0,41412.0,0.060432]
[1646360705692,0.04153335,41417.0,41412.0,0.060432]
[1646360706740,0.04075335,41417.0,41412.0,0.060432]
[1646360706940,0.04075335,41417.0,41411.0,0.00168079]
[1646360708541,0.69300465,41419.0,41411.0,0.00168079]
[1646360708741,0.24328486,41419.0,41411.0,0.00168079]
[1646360709343,0.24328486,41419.0,41414.0,0.17858304]
[1646360710090,0.1,41419.0,41414.0,0.17858304]
[1646360710289,0.104,41419.0,41414.0,0.17858304]
[1646360711093,0.104,41419.0,41413.0,0.06043]
[1646360711391,0.29851466,41419.0,41411.0,0.00168079]
[1646360711592,0.29451466,41419.0,41411.0,0.00168079]
[1646360711792,2.49512782,41415.0,41411.0,0.00168079]
[1646360712398,0.14328486,41414.0,41411.0,0.00168079]
[1646360713394,0.16484199,41412.0,41411.0,0.00168079]
[1646360713844,0.44328486,41414.0,41411.0,0.00168079]
[1646360714044,0.14328486,41414.0,41411.0,0.00168079]
[1646360714250,0.27754315,41414.0,41411.0,0.00168079]
[1646360714445,0.005,41412.0,41411.0,0.00168079]
[1646360716149,0.37754315,41414.0,41411.0,0.00168079]
[1646360716347,0.005,41412.0,41411.0,0.00168079]
[1646360717594,0.54328486,41414.0,41411.0,0.00168079]
[1646360717797,0.17293789,41412.0,41411.0,0.00168079]
[1646360717993,0.54328486,41414.0,41411.0,0.00168079]
[1646360718397,0.0482,41413.0,41411.0,0.00168079]
[1646360718795,0.1482,41413.0,41411.0,0.00168079]
[1646360719600,0.0482,41413.0,41411.0,0.00168079]
[1646360719799,0.230364,41419.0,41411.0,0.00168079]
[1646360719800,0.13425829,41416.0,41411.0,0.00168079]
[1646360720406,0.14728486,41418.0,41413.0,0.181256]
[1646360720604,0.004,41418.0,41413.0,0.181256]
[1646360720802,0.5,41420.0,41413.0,0.181256]
[1646360721003,0.141473,41420.0,41413.0,1.081256]
[1646360722042,0.141473,41420.0,41413.0,0.181256]
[1646360725794,0.1972808,41419.0,41413.0,0.181256]
[1646360725992,0.141473,41420.0,41413.0,0.181256]
[1646360728098,0.36063881,41420.0,41413.0,0.181256]
[1646360728295,0.141473,41420.0,41413.0,0.181256]
[1646360731344,0.30286106,41420.0,41413.0,0.181256]
[1646360731743,0.141473,41420.0,41413.0,0.181256]
[1646360733700,0.14328486,41422.0,41419.0,0.18124849]
[1646360733904,0.44971979,41424.0,41419.0,0.24166249]
[1646360733905,0.14328486,41424.0,41419.0,0.24166249]
[1646360734099,0.14328486,41424.0,41419.0,0.060414]
[1646360734301,0.16230109,41425.0,41420.0,0.21192855]
[1646360734999,0.14328486,41426.0,41420.0,0.21192855]
[1646360735200,0.24328486,41426.0,41421.0,0.18087202]
[1646360735399,0.1,41426.0,41421.0,0.18087202]
[1646360735599,0.24328486,41426.0,41421.0,0.18087202]
[1646360736861,0.24328486,41426.0,41419.0,0.060414]
[1646360737759,0.24328486,41426.0,41420.0,0.23473464]
[1646360739660,0.14328486,41426.0,41420.0,0.23473464]
[1646360740205,1.04208486,41427.0,41420.0,0.23473464]
[1646360742508,0.8988,41427.0,41420.0,0.23473464]
[1646360742707,0.14328486,41426.0,41420.0,0.23473464]
[1646360743110,1.04208486,41427.0,41420.0,0.23473464]
[1646360744143,1.25106921,41427.0,41420.0,0.23473464]
[1646360744343,1.04208486,41427.0,41420.0,0.23473464]
[1646360744545,0.14328486,41426.0,41420.0,0.23466967]
[1646360745044,0.8988,41427.0,41420.0,0.23466967]
[1646360745045,1.04208486,41427.0,41420.0,0.23466967]
[1646360745845,0.8988,41427.0,41420.0,0.23466967]
[1646360746048,0.14328486,41426.0,41420.0,0.23466967]
[1646360746247,1.04208486,41427.0,41420.0,0.23466967]
[1646360746646,0.8988,41427.0,41420.0,0.23466967]
[1646360746845,0.14328486,41426.0,41420.0,0.23466967]
[1646360747049,1.04208486,41427.0,41420.0,0.23466967]
[1646360747248,0.14328486,41426.0,41420.0,0.23466967]
[1646360747691,0.8988,41427.0,41420.0,0.23466967]
[1646360747891,0.14328486,41426.0,41420.0,0.23466967]
[1646360748092,1.04208486,41427.0,41420.0,0.23466967]
[1646360748295,0.14328486,41428.0,41420.0,0.23466967]
[1646360748492,0.14328486,41426.0,41420.0,0.23466967]
[1646360748695,0.63947226,41429.0,41420.0,0.23466967]
[1646360749297,0.63947226,41429.0,41416.0,1.037]
[1646360749298,0.05,41421.0,41416.0,1.037]
[1646360749493,0.99971979,41428.0,41416.0,0.737]
[1646360749892,0.14328486,41427.0,41416.0,0.737]
[1646360750295,0.14328486,41427.0,41419.0,0.22368619]
[1646360752846,0.59300465,41427.0,41419.0,0.22368619]
[1646360753044,0.59300465,41427.0,41415.0,0.20058079]
[1646360753446,0.44971979,41426.0,41415.0,0.20058079]
[1646360753746,0.06017433,41420.0,41415.0,0.20058079]
[1646360753953,0.77075667,41425.0,41415.0,0.20058079]
[1646360753954,0.3482,41419.0,41415.0,0.20058079]
[1646360754247,0.1482,41418.0,41415.0,0.20058079]
[1646360754445,0.1482,41418.0,41415.0,0.10058079]
[1646360754645,0.6432,41418.0,41415.0,0.10058079]
[1646360755099,0.78648486,41418.0,41415.0,0.10058079]
[1646360755295,1.2104992,41418.0,41415.0,0.10058079]
[1646360755697,0.14328486,41417.0,41415.0,0.10058079]
[1646360755894,0.0482,41416.0,41415.0,0.10058079]
[1646360756094,1.01471096,41416.0,41415.0,0.10058079]
[1646360756295,0.5482,41416.0,41415.0,0.10058079]
[1646360756500,0.69148486,41416.0,41415.0,0.10058079]
[1646360756696,0.5482,41416.0,41415.0,0.10058079]
[1646360757399,0.5,41416.0,41415.0,0.10058079]
[1646360759047,0.16828486,41421.0,41415.0,0.10058079]
[1646360759048,0.66828486,41421.0,41415.0,0.10058079]
[1646360759640,0.525,41421.0,41415.0,0.10058079]
[1646360760843,1.81821312,41418.0,41415.0,0.10058079]
[1646360761242,0.14328486,41417.0,41415.0,0.10058079]
[1646360762523,0.3,41416.0,41415.0,0.10058079]
[1646360762718,0.4,41416.0,41415.0,0.10058079]
[1646360763718,0.54328486,41416.0,41415.0,0.10058079]
[1646360764716,1.04328486,41416.0,41415.0,0.10058079]
[1646360766755,0.74328486,41416.0,41415.0,0.10058079]
[1646360766962,0.64328486,41416.0,41415.0,0.10058079]
[1646360767156,0.5,41416.0,41415.0,0.10058079]
[1646360769156,0.16531424,41421.0,41415.0,0.10058079]
[1646360769356,0.6,41422.0,41415.0,0.10058079]
[1646360769562,0.74328486,41422.0,41415.0,0.10058079]
[1646360769758,0.6,41422.0,41418.0,0.18594138]
[1646360770196,0.6,41422.0,41418.0,0.16734725]
[1646360770797,0.74328486,41422.0,41418.0,0.16734725]
[1646360771496,0.6,41422.0,41418.0,0.16734725]
[1646360771900,0.6,41422.0,41415.0,0.10058079]
[1646360772104,0.39823229,41417.0,41415.0,0.10058079]
[1646360772302,0.39823229,41416.0,41415.0,0.10058079]
[1646360773743,0.39823229,41416.0,41415.0,0.33740285]
[1646360774346,0.39823229,41416.0,41415.0,0.10058079]
[1646360775747,0.39823229,41416.0,41415.0,0.35786853]
[1646360775947,0.39823229,41416.0,41415.0,0.10058079]
[1646360776550,0.14328486,41420.0,41415.0,0.10058079]
[1646360776751,0.39845849,41416.0,41415.0,0.10058079]
[1646360776950,0.1594511,41419.0,41415.0,0.10058079]
[1646360778296,0.14328486,41420.0,41415.0,0.10058079]
[1646360778696,0.8,41421.0,41415.0,0.00058079]
[1646360779095,1.01181897,41421.0,41415.0,0.00058079]
[1646360779296,0.8,41421.0,41415.0,0.00058079]
[1646360779497,0.14328486,41420.0,41415.0,0.00058079]
[1646360779799,0.94328486,41421.0,41415.0,0.00058079]
[1646360780000,0.8,41421.0,41415.0,0.00058079]
[1646360780397,0.95400356,41421.0,41415.0,0.00058079]
[1646360780598,0.8,41421.0,41415.0,0.00058079]
[1646360781001,0.14328486,41420.0,41415.0,0.00058079]
[1646360781651,2.07460805,41419.0,41415.0,0.00058079]
[1646360782050,0.14328486,41418.0,41415.0,0.00058079]
[1646360783251,0.64328486,41418.0,41415.0,0.00058079]
[1646360783851,0.842729,41418.0,41415.0,0.00058079]
[1646360784253,1.00503009,41418.0,41415.0,0.00058079]
[1646360785911,1.00503009,41418.0,41415.0,0.00057701]
[1646360786308,0.80558595,41418.0,41415.0,0.00057701]
[1646360787309,0.17714535,41417.0,41415.0,0.00057701]
[1646360787607,0.64328486,41418.0,41415.0,0.00057701]
[1646360787809,0.93828486,41418.0,41415.0,0.00057701]
[1646360788507,0.18771852,41417.0,41415.0,0.00057701]
[1646360788746,0.80058595,41418.0,41415.0,0.00057701]
[1646360788948,0.14328486,41417.0,41415.0,0.00057701]
[1646360789147,1.10558595,41418.0,41415.0,0.00057701]
[1646360790047,0.80558595,41418.0,41415.0,0.00057701]
[1646360790551,1.10558595,41418.0,41415.0,0.00057701]
[1646360790952,0.80558595,41418.0,41415.0,0.00057701]
[1646360791149,1.10558595,41418.0,41415.0,0.00057701]
[1646360792593,0.80558595,41418.0,41415.0,0.00057701]
[1646360792994,0.66230109,41418.0,41415.0,0.00057701]
[1646360793794,0.5,41418.0,41415.0,0.00057701]
[1646360794796,2.51241582,41418.0,41415.0,0.00057701]
[1646360794996,0.14328486,41417.0,41415.0,0.00057701]
[1646360795197,0.5,41418.0,41415.0,0.00057701]
[1646360797045,0.3,41417.0,41415.0,0.00057701]
[1646360797247,0.79791979,41417.0,41415.0,0.00057701]
[1646360797447,0.65285867,41417.0,41415.0,0.00057701]
[1646360797645,0.79614353,41417.0,41415.0,0.00057701]
[1646360797945,0.64120465,41417.0,41415.0,0.00057701]
[1646360798146,0.19148486,41417.0,41415.0,0.00057701]
[1646360800498,0.15889861,41416.0,41415.0,0.00057701]
[1646360800905,0.65889861,41416.0,41415.0,0.00057701]
[1646360801799,1.10218347,41416.0,41415.0,0.00057701]
[1646360801999,0.80218347,41416.0,41415.0,0.00057701]
[1646360802499,1.10218347,41416.0,41415.0,0.00057701]
[1646360803505,0.94328486,41416.0,41415.0,0.00057701]
[1646360803747,0.44328486,41416.0,41415.0,0.00057701]
[1646360804047,0.14328486,41416.0,41415.0,0.00057701]
[1646360804247,0.3,41416.0,41415.0,0.00057701]
[1646360804547,0.49791979,41417.0,41415.0,0.00057701]
[1646360804747,0.004,41416.0,41415.0,0.00057701]
[1646360805949,0.304,41416.0,41415.0,0.00057701]
[1646360806349,0.44728486,41416.0,41415.0,0.00057701]
[1646360806549,0.3,41416.0,41415.0,0.00057701]
[1646360806747,0.303,41416.0,41415.0,0.00057701]
[1646360806949,0.44628486,41416.0,41415.0,0.00057701]
[1646360807249,0.14628486,41416.0,41415.0,0.00057701]
[1646360807499,0.003,41416.0,41415.0,0.00057701]
[1646360807999,0.44971979,41417.0,41415.0,0.00057701]
[1646360808401,0.20792545,41416.0,41415.0,0.00057701]
[1646360809003,0.50792545,41416.0,41415.0,0.00057701]
[1646360809401,0.35121031,41416.0,41415.0,0.00057701]
[1646360809602,0.20792545,41416.0,41415.0,0.00057701]
[1646360809803,0.59700465,41417.0,41415.0,0.00057701]
[1646360810003,0.45371979,41417.0,41415.0,0.00057701]
[1646360810204,0.44971979,41417.0,41415.0,0.00057701]
[1646360810808,0.6162927,41417.0,41415.0,0.00045732]
[1646360811005,0.3,41416.0,41415.0,0.00045732]
[1646360811453,0.6162927,41417.0,41415.0,0.00045732]
[1646360811849,0.3,41416.0,41415.0,0.00045732]
[1646360812246,0.44328486,41416.0,41415.0,0.00045732]
[1646360812847,0.60558595,41416.0,41415.0,0.00045732]
[1646360813447,0.30558595,41416.0,41415.0,0.00045732]
[1646360815095,0.16230109,41416.0,41415.0,0.00045732]
[1646360815296,0.27728336,41416.0,41415.0,0.00045732]
[1646360815996,0.37728336,41416.0,41415.0,0.00045732]
[1646360816798,0.38128336,41416.0,41415.0,0.00045732]
[1646360818002,0.82640862,41416.0,41415.0,0.00045732]
[1646360819746,0.82634195,41416.0,41415.0,0.00045732]
[1646360820345,0.71135968,41416.0,41415.0,0.00045732]
[1646360820746,0.1,41416.0,41415.0,0.00045732]
[1646360821350,0.025,41420.0,41416.0,0.23047296]
[1646360821351,0.44912526,41418.0,41416.0,0.23047296]
[1646360821548,0.47412526,41420.0,41416.0,0.23047296]
[1646360821749,0.025,41420.0,41416.0,0.23047296]
[1646360824798,0.56410753,41423.0,41416.0,0.23047296]
[1646360825617,0.11498227,41423.0,41416.0,0.23047296]
[1646360825999,0.11498227,41423.0,41422.0,0.16992625]
[1646360826860,0.8988,41424.0,41422.0,0.16992625]
[1646360826861,1.01378227,41424.0,41422.0,0.16992625]
[1646360827062,1.01378227,41424.0,41423.0,0.23445389]
[1646360827865,0.8988,41424.0,41423.0,0.23445389]
[1646360828064,1.01378227,41424.0,41423.0,0.23445389]
[1646360828264,0.11498227,41428.0,41423.0,0.23445389]
[1646360828464,0.11498227,41424.0,41423.0,0.29485589]
[1646360828663,0.44912526,41430.0,41423.0,0.29485589]
[1646360828864,0.1127,41431.0,41429.0,0.16403591]
[1646360828865,0.56182526,41431.0,41429.0,0.16403591]
[1646360829064,0.44912526,41431.0,41429.0,0.16403591]
[1646360829464,0.44912526,41432.0,41429.0,0.16403591]
[1646360830098,0.44912526,41433.0,41429.0,0.16403591]
[1646360830599,0.44912526,41434.0,41429.0,0.16403591]
[1646360830996,0.44912526,41434.0,41433.0,0.22036757]
[1646360831196,0.44912526,41434.0,41429.0,0.16403591]
[1646360831398,0.33278227,41435.0,41429.0,0.16403591]
[1646360831399,0.56410753,41435.0,41429.0,0.16403591]
[1646360831596,0.11498227,41435.0,41429.0,0.16403591]
[1646360832196,0.11498227,41435.0,41434.0,0.26883153]
[1646360832596,0.11498227,41435.0,41429.0,0.16403591]
[1646360833599,0.11498227,41435.0,41431.0,0.21150211]
[1646360833846,0.8988,41436.0,41431.0,0.21150211]
[1646360833847,1.01378227,41436.0,41431.0,0.21150211]
[1646360834047,0.11498227,41435.0,41431.0,0.21150211]
[1646360834849,0.12098227,41435.0,41431.0,0.21150211]
[1646360835248,0.12098227,41435.0,41429.0,0.16403591]
[1646360835452,0.19268764,41433.0,41425.0,0.1205]
[1646360835849,0.19268764,41433.0,41424.0,0.3]
[1646360836052,0.19268764,41433.0,41418.0,0.1147]
[1646360836251,0.21498227,41434.0,41427.0,0.24310442]
[1646360836452,0.66410753,41434.0,41419.0,0.3]
[1646360836649,0.66410753,41434.0,41422.0,0.17657644]
[1646360836650,0.21498227,41434.0,41422.0,0.17657644]
[1646360837250,0.21498227,41434.0,41423.0,0.3]
[1646360837499,0.21498227,41434.0,41427.0,0.26880336]
[1646360838998,0.16047337,41431.0,41427.0,0.26880336]
[1646360839599,0.16047337,41431.0,41422.0,0.17657644]
[1646360840101,0.21498227,41434.0,41422.0,0.17657644]
[1646360840502,0.21498227,41434.0,41426.0,0.28741703]
[1646360840700,0.21498227,41434.0,41422.0,0.17657644]
[1646360840900,0.21798227,41434.0,41422.0,0.17657644]
[1646360841101,0.22765227,41434.0,41422.0,0.17657644]
[1646360841551,0.21798227,41434.0,41422.0,0.17657644]
[1646360841749,0.21798227,41434.0,41425.0,0.27555988]
[1646360842154,0.16667228,41432.0,41425.0,0.27555988]
[1646360842350,0.003,41434.0,41425.0,0.27555988]
[1646360842752,0.21498227,41435.0,41425.0,0.27555988]
[1646360843059,0.21498227,41435.0,41433.0,0.26068779]
[1646360843252,0.11498227,41435.0,41433.0,0.26068779]
[1646360843453,0.11498227,41435.0,41433.0,0.26062398]
[1646360843954,0.11498227,41435.0,41429.0,0.20806923]
[1646360844353,0.17226919,41433.0,41429.0,0.20806923]
[1646360844552,0.11498227,41435.0,41429.0,0.20806923]
[1646360844754,0.21498227,41435.0,41429.0,0.20806923]
[1646360845019,0.21498227,41435.0,41430.0,0.27315765]
[1646360845618,0.21226036,41433.0,41429.0,0.20806923]
[1646360845811,0.21498227,41435.0,41424.0,0.1237]
[1646360846813,0.21498227,41435.0,41427.0,0.16360426]
[1646360847012,0.21498227,41435.0,41433.0,0.24798418]
[1646360847214,0.21498227,41435.0,41427.0,0.16360426]
[1646360848852,0.21498227,41435.0,41429.0,0.20530958]
[1646360849058,0.20983836,41433.0,41429.0,0.20530958]
[1646360849453,0.21498227,41435.0,41429.0,0.20530958]
[1646360850760,0.11498227,41435.0,41429.0,0.20530958]
[1646360850953,0.8988,41436.0,41429.0,0.20530958]
[1646360852798,0.9008,41436.0,41429.0,0.20530958]
[1646360853198,0.9008,41436.0,41425.0,0.76105]
[1646360853405,0.3,41435.0,41424.0,0.1247]
[1646360853797,0.37993558,41435.0,41424.0,0.1247]
[1646360854200,0.18710415,41428.0,41424.0,0.1237]
[1646360854401,0.37993558,41435.0,41425.0,0.238001]
[1646360854800,0.002,41428.0,41425.0,0.238001]
[1646360855700,0.002,41428.0,41426.0,0.20514469]
[1646360856099,0.37993558,41435.0,41426.0,0.20514469]
[1646360856546,0.16323878,41433.0,41426.0,0.20514469]
[1646360856746,0.37993558,41435.0,41426.0,0.20514469]
[1646360858849,0.1871684,41433.0,41426.0,0.20614469]
[1646360859047,0.37993558,41435.0,41426.0,0.20614469]
[1646360859449,0.3,41435.0,41426.0,0.20614469]
[1646360860018,0.20993823,41434.0,41426.0,0.20514469]
[1646360860426,0.8988,41436.0,41426.0,0.94214469]
[1646360860620,0.8988,41436.0,41426.0,0.20514469]
[1646360860819,0.8988,41436.0,41426.0,0.20614469]
[1646360860820,0.97891917,41436.0,41426.0,0.20614469]
[1646360861420,0.19482619,41434.0,41426.0,0.20614469]
[1646360861619,0.19482619,41434.0,41426.0,0.94314469]
[1646360861822,0.19482619,41434.0,41426.0,0.20614469]
[1646360862718,0.19482619,41434.0,41426.0,0.20514469]
[1646360862918,0.19482619,41434.0,41426.0,0.20614469]
[1646360863120,0.19482619,41434.0,41426.0,0.001]
[1646360863949,0.8988,41436.0,41426.0,0.001]
[1646360864148,0.44912526,41435.0,41426.0,0.21576287]
[1646360864346,0.44912526,41435.0,41426.0,0.21476287]
[1646360864748,0.74912526,41435.0,41426.0,0.21476287]
[1646360864951,1.24912526,41435.0,41426.0,0.001]
[1646360865150,0.94912526,41435.0,41426.0,0.001]
[1646360865349,1.24912526,41435.0,41426.0,0.001]
[1646360866158,0.21049431,41432.0,41425.0,0.238001]
[1646360866855,0.21249431,41432.0,41425.0,0.233001]
[1646360867156,0.71249431,41432.0,41422.0,0.737]
[1646360868203,0.71049431,41432.0,41422.0,0.737]
[1646360868402,0.71049431,41432.0,41424.0,0.2666232]
[1646360868604,0.71049431,41432.0,41422.0,0.737]
[1646360868907,0.71049431,41432.0,41422.0,0.738]
[1646360869709,0.71049431,41432.0,41425.0,0.26594281]
[1646360870508,0.71049431,41432.0,41422.0,0.737]
[1646360870908,0.71085126,41432.0,41422.0,0.737]
[1646360871583,1.01085126,41432.0,41424.0,0.24696405]
[1646360871776,0.71085126,41432.0,41424.0,0.24696405]
[1646360872578,1.16026749,41432.0,41424.0,0.24696405]
[1646360872776,1.15926749,41432.0,41424.0,0.24696405]
[1646360872975,1.16126749,41432.0,41424.0,0.24696405]
[1646360873777,0.95077318,41432.0,41427.0,0.16387176]
[1646360873979,1.00135695,41432.0,41427.0,0.16387176]
[1646360874181,0.99935695,41432.0,41427.0,0.16387176]
[1646360874378,1.44877318,41432.0,41427.0,0.16387176]
[1646360874779,1.16532993,41432.0,41426.0,0.15420473]
[1646360874998,0.99935695,41432.0,41426.0,0.15420473]
[1646360876000,1.44877318,41432.0,41426.0,0.21460073]
[1646360876203,0.49935695,41432.0,41426.0,0.21460073]
[1646360877002,0.49935695,41432.0,41426.0,0.21560073]
[1646360877202,0.49935695,41432.0,41431.0,0.2333921]
[1646360877602,0.49935695,41432.0,41426.0,0.21560073]
[1646360878206,0.49935695,41432.0,41426.0,0.21460073]
[1646360878857,0.49935695,41432.0,41429.0,0.27749638]
[1646360879362,0.49935695,41432.0,41426.0,0.15520473]
[1646360880162,0.49935695,41432.0,41426.0,0.15420473]
[1646360880360,0.49935695,41432.0,41428.0,0.27035338]
[1646360880563,0.49935695,41432.0,41426.0,0.15420473]
[1646360880960,0.50235695,41432.0,41426.0,0.15420473]
[1646360881563,0.50235695,41432.0,41428.0,0.25832924]
[1646360881864,0.50235695,41432.0,41426.0,0.15420473]
[1646360882262,0.49935695,41432.0,41426.0,0.15420473]
[1646360882725,0.49935695,41432.0,41425.0,0.120794]
[1646360882923,0.50235695,41432.0,41425.0,0.33105098]
[1646360883521,0.50235695,41432.0,41425.0,0.120794]
[1646360883721,0.50235695,41432.0,41425.0,0.857794]
[1646360884121,0.50235695,41432.0,41422.0,0.21876098]
[1646360884326,0.57962858,41432.0,41423.0,0.060405]
[1646360884921,0.57962858,41432.0,41424.0,0.23126839]
[1646360886955,0.57962858,41432.0,41424.0,0.23326839]
[1646360887953,0.19760688,41430.0,41424.0,0.23326839]
[1646360888153,0.57962858,41432.0,41424.0,0.23326839]
[1646360888353,0.57962858,41432.0,41424.0,0.97026839]
[1646360888852,0.57962858,41432.0,41424.0,0.96826839]
[1646360889053,0.57962858,41432.0,41424.0,0.97026839]
[1646360889254,0.57962858,41432.0,41424.0,0.23326839]
[1646360889454,0.57953902,41432.0,41424.0,0.23326839]
[1646360890102,0.15707511,41430.0,41424.0,0.23326839]
[1646360890303,0.57953902,41432.0,41424.0,0.23126839]
[1646360890903,0.58253902,41432.0,41424.0,0.23126839]
[1646360892308,0.57953902,41432.0,41424.0,0.23126839]
[1646360892905,0.16095583,41431.0,41424.0,0.23326839]
[1646360893104,0.57953902,41432.0,41424.0,0.23326839]
[1646360894156,0.57953902,41432.0,41424.0,0.23126839]
[1646360894958,0.57953902,41432.0,41424.0,0.23326839]
[1646360895757,0.66513719,41432.0,41424.0,0.23326839]
[1646360896155,0.66513719,41432.0,41424.0,0.23126839]
[1646360896356,0.49926739,41432.0,41424.0,0.23126839]
[1646360896558,0.49926739,41432.0,41424.0,0.96826839]
[1646360896959,0.50026739,41432.0,41424.0,0.96826839]
[1646360898000,0.50026739,41432.0,41424.0,0.23126839]
[1646360898202,0.49926739,41432.0,41429.0,0.20881224]
[1646360899002,0.50126739,41432.0,41429.0,0.20881224]
[1646360900001,0.21736724,41431.0,41429.0,0.20881224]
[1646360900205,0.49926739,41432.0,41429.0,0.20881224]
[1646360900602,0.49926739,41432.0,41429.0,0.45135341]
[1646360901003,0.50326739,41432.0,41429.0,0.45135341]
[1646360902458,0.50326739,41432.0,41430.0,0.367453]
[1646360902658,0.14097339,41432.0,41430.0,0.367453]
[1646360902861,0.13697339,41432.0,41431.0,0.737]
[1646360903056,0.13697339,41432.0,41431.0,1.104453]
[1646360903258,0.13697339,41432.0,41431.0,1.190783]
[1646360904261,1.34821623,41444.0,41432.0,1.667453]
[1646360904262,0.38771702,41444.0,41432.0,1.667453]
[1646360904463,0.38771702,41444.0,41431.0,1.12333]
[1646360904464,0.4481209,41445.0,41437.0,0.15]
[1646360904667,0.1233,41458.0,41437.0,0.15]
[1646360904668,0.5,41455.0,41438.0,0.715653]
[1646360904864,0.5,41455.0,41441.0,0.15]
[1646360904865,0.07317472,41454.0,41441.0,0.15]
[1646360905130,0.07317472,41458.0,41442.0,1.452653]
[1646360905324,0.07317472,41458.0,41455.0,0.17667643]
[1646360905529,0.4597,41459.0,41455.0,0.17667643]
[1646360905530,0.4097,41459.0,41455.0,0.17667643]
[1646360905724,0.4097,41459.0,41447.0,0.367453]
[1646360905925,0.4097,41459.0,41449.0,0.367453]
[1646360906126,0.2523,41462.0,41451.0,0.367453]
[1646360906427,0.70031847,41462.0,41453.0,0.367453]